[Event "1st FIDE Olympiad DIS 2023"]
[Site "Belgrade"]
[Date "2023.01.30"]
[Round "1.14"]
[White "CHIKAFU, ONAI"]
[Black "Moldovanovic, Dragan"]
[Result "0-1"]
[ECO "C11"]
[WhiteElo "1494"]
[BlackElo "2019"]
[Annotator "TA"]
[PlyCount "122"]
[EventDate "2023.01.30"]
[EventType "team-tourn"]
[EventCountry "SRB"]
[SourceTitle "playchess.com"]
[Source "ChessBase"]
[SourceQuality "1"]
[WhiteTeam "Zimbabwe"]
[BlackTeam "ICCD"]
[WhiteTeamCountry "ZIM"]
[BlackTeamCountry "SRB"]
[TimeControl "40/5400+30:1800+30"]

{[%evp 9,122,-3,4,-71,-71,-74,-75,-81,-74,-106,-116,-137,-145,-140,-114,-323,-299,-314,-318,-420,-430,-536,-490,-466,-461,-448,-420,-411,-409,-411,-408,-422,-421,-429,-421,-493,-494,-508,-508,-508,-508,-508,-508,-508,-508,-508,-483,-479,-479,-483,-478,-577,-572,-773,-794,-787,-785,-1153,-1114,-1022,-1017,-979,-911,-29976,-29977,-29977,-29978,-29978,-29979,-29977,-29978,-29978,-29979,-29979,-29980,-29980,-29981,-29981,-29979,-29982,-29982,-29981,-29982,-29982,-29982,-29985,-29986,-29985,-29986,-29986,-29987,-29987,-29988,-29988,-29989,-29989,-29990,-29990,-29990,-29990,-29990,-29992,-29992,-29994,-29995,-29995,-29996,-29996,-29997,-29997,-29997,-29998,-29998,32767,-29999]} 1. e4 {[%emt 0:00:23]} e6 {[%emt 0:00:12]} 2. d4 {[%emt 0:00:42]} d5 {[%emt 0:00:18]} 3. Nc3 {[%emt 0:01:15][%cal Bb1c3,Bc3b5,Bb5d4][%mdl 32]} Nf6 {[%emt 0:00:29]} 4. e5 {[%emt 0:01:44]} Nfd7 {[%emt 0:00:14]} 5. Nf3 {[%emt 0:02:02]} c5 {[%emt 0:00:43][%cal Bc7c5,Bc5d4][%mdl 32]} 6. Bd3 {[%emt 0:02:33] C11: French: Classical System: 4 e5 and 4 Bg5 dxe4.} (6. Ne2 $11) 6... cxd4 $17 {[%emt 0:02:37]} 7. Nb5 {[%emt 0:02:00]} Nc6 {[%emt 0:01:27]} 8. Qe2 {[%emt 0:01:55] [#] Black is better.} Bb4+ $146 {[%emt 0:01:30]} ({Predecessor:} 8... Qb6 9. O-O a6 10. Na3 Be7 11. Nb1 Nc5 12. a3 Bd7 13. Re1 Nxd3 14. Qxd3 a5 {0-1 Kurth,M (1950)-Keuchen,M (2036) Harburg-chB 12th 2017 (3)}) 9. Bd2 {[%emt 0:01:21]} Bxd2+ {[%emt 0:00:16]} 10. Nxd2 {[%emt 0:00:44]} Ndxe5 {[%emt 0:00:28]} 11. Nxd4 {[%emt 0:00:46]} O-O {[%emt 0:03:20]} 12. N2f3 $2 {[%emt 0:03:12]} (12. Nxc6 $17 Nxc6 13. O-O) 12... Nxf3+ $19 {[%emt 0:04:01]} 13. Nxf3 {[%emt 0:01:11] [#]} e5 $1 {[%emt 0:00:22][%mdl 512] Strongly threatening ...e4.} 14. Bb5 {[%emt 0:00:32]} ({But not} 14. Nxe5 Nxe5 15. O-O Re8 $19) (14. O-O-O Qf6) 14... e4 {[%emt 0:01:02]} 15. O-O {[%emt 0:01:39]} exf3 {[%emt 0:05:52]} 16. Qxf3 {[%emt 0:07:12]} Nd4 {[%emt 0:00:00][%csl LRb5,LRc2,LRf3]} 17. Qd3 {[%emt 0:02:34]} Nxb5 {[%emt 0:00:00]} 18. Qxb5 {[%emt 0:00:44]} b6 {[%emt 0:00:00]} 19. Rfe1 {[%emt 0:02:06]} Be6 {[%emt 0:00:00]} 20. Rad1 {[%emt 0:01:24]} Qc7 {[%emt 0:00:00]} 21. c3 {[%emt 0:02:11]} Qc4 {[%emt 0:00:00]} 22. Qxc4 {[%emt 0:01:59]} dxc4 {[%emt 0:00:00]} 23. Rd4 {[%emt 0:00:50]} Rfd8 {[%emt 0:00:09]} 24. Red1 {[%emt 0:00:40]} Rxd4 {[%emt 0:00:15]} 25. Rxd4 {[%emt 0:00:31][%mdl 4096] Endgame KRB-KR} Kf8 {[%emt 0:00:19]} 26. f3 {[%emt 0:00:32]} Ke7 {[%emt 0:00:54]} 27. Kf2 {[%emt 0:00:26]} b5 {[%emt 0:00:31]} 28. Ke3 {[%emt 0:01:06]} Rb8 {[%emt 0:00:33]} 29. a3 {[%emt 0:01:18]} a5 {[%emt 0:00:34]} 30. g4 {[%emt 0:02:20]} g5 {[%emt 0:00:52] ...Rd8 would be deadly.} 31. h3 {[%emt 0:01:14]} b4 {[%emt 0:00:32]} 32. axb4 {[%emt 0:01:25]} axb4 {[%emt 0:00:12]} 33. f4 {[%emt 0:02:04]} gxf4+ {[%emt 0:00:17]} 34. Rxf4 {[%emt 0:00:21]} bxc3 {[%emt 0:00:13]} 35. bxc3 {[%emt 0:00:25]} Rd8 {[%emt 0:01:04]} 36. Rf3 {[%emt 0:01:03]} Rd3+ {[%emt 0:02:06]} 37. Ke2 {[%emt 0:00:47]} Rxf3 {[%emt 0:01:26]} 38. Kxf3 {[%emt 0:00:20] KB-K3P} Kf6 {[%emt 0:00:41]} 39. Kf4 {[%emt 0:00:25]} Kg6 {[%emt 0:00:18]} 40. h4 {[%emt 0:01:17]} h5 {[%emt 0:00:17]} 41. g5 {[%emt 0:31:18]} f6 {[%emt 0:32:23]} 42. gxf6 {[%emt 0:01:10]} Kxf6 {[%emt 0:00:34] KB-KPP} 43. Ke4 {[%emt 0:00:38]} Bf5+ {[%emt 0:00:37]} 44. Kf4 {[%emt 0:01:12]} Bd3 {[%emt 0:00:12]} 45. Ke3 {[%emt 0:01:30]} Ke5 {[%emt 0:02:16]} 46. Kf3 {[%emt 0:00:49]} Kf5 {[%emt 0:00:17]} 47. Kg3 {[%emt 0:01:39]} Ke4 {[%emt 0:01:09]} 48. Kf2 {[%emt 0:02:10]} Kf4 {[%emt 0:00:17]} 49. Kg2 {[%emt 0:00:36]} Kg4 {[%emt 0:00:08]} 50. Kf2 {[%emt 0:00:46]} Kxh4 {[%emt 0:00:08] KB-KP} 51. Kf3 {[%emt 0:00:29]} Kg5 {[%emt 0:00:19]} 52. Kg3 {[%emt 0:01:00]} h4+ {[%emt 0:01:09]} 53. Kf3 {[%emt 0:00:56]} Bf5 {[%emt 0:00:23]} 54. Ke3 {[%emt 0:01:45]} Kg4 {[%emt 0:00:19]} 55. Kf2 {[%emt 0:02:09]} h3 {[%emt 0:00:23]} 56. Kg1 {[%emt 0:01:57]} Kg3 {[%emt 0:00:30]} 57. Kf1 {[%emt 0:00:26]} h2 {[%emt 0:00:25]} 58. Ke2 {[%emt 0:00:29]} h1=Q {[%emt 0:00:13]} 59. Ke3 {[%emt 0:00:30]} Qg1+ {[%emt 0:01:04]} 60. Kd2 {[%emt 0:00:56]} Qf2+ {[%emt 0:00:15]} 61. Kd1 {[%emt 0:00:53]} Kf3 {[%emt 0:00:19] Black took control after the opening.   Weighted Error Value: White=0.51/Black=0.06 (flawless)} 0-1

[Event "1st FIDE Olympiad DIS 2023"]
[Site "Belgrade"]
[Date "2023.01.30"]
[Round "1.15"]
[White "Shayusupov, Marsel"]
[Black "Bernardo, Darry"]
[Result "0-1"]
[ECO "D47"]
[WhiteElo "1580"]
[BlackElo "2070"]
[Annotator "TA"]
[PlyCount "100"]
[EventDate "2023.01.30"]
[EventType "team-tourn"]
[EventCountry "SRB"]
[SourceTitle "playchess.com"]
[Source "ChessBase"]
[SourceQuality "1"]
[WhiteTeam "Uzbekistan"]
[BlackTeam "Philippines"]
[WhiteTeamCountry "UZB"]
[BlackTeamCountry "PHI"]
[TimeControl "40/5400+30:1800+30"]

{[%evp 16,100,-16,-5,61,8,12,-38,-47,-20,-34,-62,0,-46,-54,-121,-108,-113,-87,-146,-173,-185,-177,-323,-316,-321,-258,-259,-259,-262,-259,-258,-257,-271,-275,-309,-265,-293,-268,-300,-291,-269,-272,-284,-287,-304,-282,-293,-293,-384,-352,-360,-329,-323,-253,-253,-234,-235,-224,-238,-222,-265,-263,-335,-326,-522,-497,-591,-521,-485,-494,-772,-746,-1308,-687,-760,-693,-660,-584,-5306,-2936,-29971,-29974,-29992,-29993,-29998,-29999]} 1. d4 {[%emt 0:01:00]} d5 {[%emt 0:01:11]} 2. c4 {[%emt 0:00:13]} c6 {[%emt 0:02:29]} 3. Nf3 {[%emt 0:00:09]} Nf6 {[%emt 0:00:58]} 4. e3 {[%emt 0:00:13]} e6 {[%emt 0:02:14]} 5. Nc3 {[%emt 0:00:13]} Nbd7 {[%emt 0:02:51]} 6. Bd3 {[%emt 0:00:10]} dxc4 {[%emt 0:04:39]} 7. Bxc4 {[%emt 0:00:11]} b5 {[%emt 0:01:51]} 8. Bb3 {[%emt 0:00:32]} Bb7 {[%emt 0:01:44]} 9. O-O {[%emt 0:00:41]} a6 {[%emt 0:03:59] D47: Semi-Slav: Meran System.} (9... Be7 $11) 10. Re1 {[%emt 0:06:57]} ({Better is} 10. e4 $14) 10... c5 $1 $11 {[%emt 0:05:20][%cal Bc6c5,Bc5c4][%mdl 32]} 11. d5 {[%emt 0:10:52]} (11. e4 $1 $11) 11... c4 $15 {[%emt 0:10:37] Black is slightly better.} 12. dxe6 $1 {[%emt 0:00:12][%mdl 64] Discovered Attack} fxe6 {[%emt 0:00:23][%cal Bf7e6,Be6e5][%mdl 32]} 13. Bc2 {[%emt 0:01:01]} Bb4 {[%emt 0:01:55] [#]} ({Black should play} 13... Bc5 $15) 14. Ng5 $146 {[%emt 0:22:27]} (14. e4 $11) ({Predecessor:} 14. e4 O-O 15. e5 Ng4 16. Bxh7+ Kh8 17. Be4 Qb6 18. Be3 Nxe3 19. Rxe3 Nc5 20. Ng5 Bxe4 21. Qh5+ Kg8 22. Ncxe4 Rf5 23. Nf6+ {1-0 Yen,M (1969)-Lee,S (1592) Windsor NAYCC U16 2016 (1.46)}) 14... Qe7 {[%emt 0:01:59]} 15. f4 {[%emt 0:00:32] White is on the road to losing.} (15. a4 $15) 15... Rd8 {[%emt 0:16:13]} 16. Qe2 {[%emt 0:13:47]} O-O {[%emt 0:09:25]} 17. e4 {[%emt 0:06:32] [#]} (17. Bd2 $142) 17... e5 $1 $17 {[%emt 0:01:05]} 18. f5 {[%emt 0:00:49]} Nc5 {[%emt 0:00:36] Wards off Ne6} 19. Bd2 {[%emt 0:09:28]} (19. a3 {is a better defense.} Ba5 20. Be3) 19... h6 $19 {[%emt 0:02:36]} 20. Nh3 {[%emt 0:00:01]} Bxc3 {[%emt 0:03:35]} 21. Bxc3 {[%emt 0:01:03]} Ncxe4 {[%emt 0:01:50]} (21... Bxe4 $2 {perishes.} 22. Ba5 Rd4 23. Bc3 $19) 22. Ba5 {[%emt 0:00:28]} Qc5+ {[%emt 0:01:21]} 23. Kh1 {[%emt 0:00:01][%cal Rc2e4]} Rd4 {[%emt 0:01:56] ...b4 would be deadly.} 24. a3 {[%emt 0:00:17]} Qc6 {[%emt 0:03:19] Hoping for ...c3.} 25. Rad1 {[%emt 0:02:33]} Re8 {[%emt 0:01:38]} 26. Bb1 {[%emt 0:03:22]} Qd7 {[%emt 0:01:49]} 27. Bb6 {[%emt 0:11:42]} Rxd1 {[%emt 0:01:32]} 28. Rxd1 {[%emt 0:00:01]} Qxf5 {[%emt 0:00:16]} 29. Kg1 {[%emt 0:00:34]} Qe6 {[%emt 0:01:07]} 30. Be3 {[%emt 0:02:19]} Qc6 {[%emt 0:00:16]} 31. Qf3 {[%emt 0:01:19]} Qc8 {[%emt 0:02:06][%cal Oe4c3] aiming for ...Nc3!} 32. Bxe4 {[%emt 0:04:40]} Nxe4 {[%emt 0:02:14]} (32... Bxe4 $2 {is the wrong capture.} 33. Qg3 $19) 33. Qh5 {[%emt 0:00:00]} Nf6 {[%emt 0:05:30]} 34. Qg6 {[%emt 0:00:00]} Be4 {[%emt 0:00:02]} 35. Qg3 {[%emt 0:00:00]} Ng4 {[%emt 0:02:25]} 36. Nf2 {[%emt 0:00:00]} Nxf2 {[%emt 0:01:32]} 37. Bxf2 {[%emt 0:00:00]} Qc6 {[%emt 0:00:51] Inhibits Rd6. White must now prevent ...Re6.} 38. Qg4 {[%emt 0:00:25]} Re6 {[%emt 0:00:31] Threatens to win with ...Rg6.} 39. Re1 {[%emt 0:02:36]} Bd5 {[%emt 0:00:18] And now ...Rg6 would win.} 40. Bg3 $2 {[%emt 0:00:45]} (40. g3 {might work better.}) 40... Bxg2 {[%emt 0:01:04] Strongly threatening ...Bf3.} 41. Rxe5 {[%emt 0:30:01]} Rf6 {[%emt 0:31:19][%csl Gg2][%cal Rf6f1]} 42. Re1 {[%emt 0:01:36] Prevents Rf1+.} Kh7 {[%emt 0:01:10]} ({Don't blunder} 42... c3 $2 43. bxc3 Kh7 44. h4 $19) 43. Qe2 {[%emt 0:01:22]} (43. Qh5 $142) 43... Bh3 {[%emt 0:00:49]} 44. Qc2+ {[%emt 0:00:00]} Rg6 {[%emt 0:00:00]} 45. Rd1 {[%emt 0:00:00]} Qc5+ {[%emt 0:00:00]} 46. Qf2 {[%emt 0:00:00]} Qh5 {[%emt 0:00:00]} 47. Rd8 {[%emt 0:00:00]} Rf6 {[%emt 0:00:00]} 48. Qc2+ {[%emt 0:00:00]} g6 {[%emt 0:00:00][%csl Gh3][%cal Rf6f1] Black mates.} 49. Rd1 {[%emt 0:00:00]} Qf3 {[%emt 0:00:00]} 50. Re1 {[%emt 0:00:00] [#]} Qf1+ $3 {[%emt 0:00:00][%mdl 576] Back Rank. A cool game by Bernardo.   Weighted Error Value: White=0.72/Black=0.29 (precise)} 0-1

[Event "1st FIDE Olympiad DIS 2023"]
[Site "Belgrade"]
[Date "2023.01.30"]
[Round "1.16"]
[White "Mendoza, Cheyzer Crystal J."]
[Black "Kimsanboyev, Axadxon"]
[Result "1/2-1/2"]
[ECO "B22"]
[WhiteElo "1639"]
[BlackElo "1600"]
[Annotator "NA RC COMBH"]
[PlyCount "125"]
[EventDate "2023.01.30"]
[EventType "team-tourn"]
[EventCountry "SRB"]
[SourceTitle "playchess.com"]
[Source "ChessBase"]
[SourceQuality "1"]
[WhiteTeam "Philippines"]
[BlackTeam "Uzbekistan"]
[WhiteTeamCountry "PHI"]
[BlackTeamCountry "UZB"]
[TimeControl "40/5400+30:1800+30"]

1. e4 {[%emt 0:00:03]} c5 {[%emt 0:00:58]} 2. c3 {[%emt 0:00:08]} Nf6 {[%emt 0:00:45]} 3. e5 {[%emt 0:00:30]} Nd5 {[%emt 0:00:08]} 4. d4 {[%emt 0:00:48]} cxd4 {[%emt 0:00:14]} 5. cxd4 {[%emt 0:00:08]} e6 {[%emt 0:00:08]} 6. Nf3 {[%emt 0:02:46]} b6 {[%emt 0:00:11]} 7. Be2 {[%emt 0:03:11]} Bb7 {[%emt 0:04:41]} 8. O-O {[%emt 0:01:41]} Be7 {[%emt 0:02:51]} 9. Nc3 {[%emt 0:05:14]} Nxc3 {[%emt 0:14:59]} 10. bxc3 {[%emt 0:00:03]} O-O {[%emt 0:01:34]} 11. c4 {[%emt 0:24:18]} d5 {[%emt 0:07:30]} 12. Qb3 {[%emt 0:15:08]} dxc4 {[%emt 0:04:13]} 13. Qxc4 {[%emt 0:07:45]} Ba6 {[%emt 0:11:26]} 14. Qc2 {[%emt 0:00:24]} Bxe2 {[%emt 0:00:09]} 15. Qxe2 {[%emt 0:00:02]} Nc6 {[%emt 0:00:14]} 16. Bb2 {[%emt 0:04:20]} Nb4 {[%emt 0:00:52]} 17. a3 {[%emt 0:04:46]} Nd5 {[%emt 0:00:10]} 18. Qe4 {[%emt 0:01:05]} Qd7 {[%emt 0:13:03]} 19. h4 {[%emt 0:05:53]} h6 {[%emt 0:02:20]} 20. Rae1 {[%emt 0:04:47]} Rac8 {[%emt 0:03:32]} 21. Qd3 {[%emt 0:08:06]} Qa4 {[%emt 0:03:07]} 22. Rc1 {[%emt 0:00:02]} b5 {[%emt 0:01:23]} 23. g4 {[%emt 0:04:07]} Rc4 {[%emt 0:01:12]} 24. h5 {[%emt 0:02:25]} Rfc8 {[%emt 0:01:33]} 25. Kh2 {[%emt 0:03:33]} Rc2 {[%emt 0:00:25]} 26. Rb1 {[%emt 0:00:23]} Rxb2 {[%emt 0:13:52]} 27. Rxb2 {[%emt 0:00:05]} Rc3 {[%emt 0:00:09]} 28. Qe2 {[%emt 0:02:03]} Nf4 {[%emt 0:00:12]} 29. Qe4 {[%emt 0:00:19]} Qxa3 {[%emt 0:00:35]} 30. Qxf4 {[%emt 0:00:39]} Qxb2 {[%emt 0:00:32]} 31. Kg2 {[%emt 0:00:20]} b4 {[%emt 0:01:15]} 32. Qe4 {[%emt 0:00:20]} Qc2 {[%emt 0:00:47]} 33. Qa8+ {[%emt 0:00:34]} Bf8 {[%emt 0:00:30]} 34. Qb7 {[%emt 0:00:44]} Rc7 {[%emt 0:00:56]} 35. Qb8 {[%emt 0:00:11]} Qc6 {[%emt 0:00:26]} 36. Rd1 {[%emt 0:00:53]} Rc8 {[%emt 0:01:06]} 37. Qxa7 {[%emt 0:00:13]} Ra8 {[%emt 0:00:39]} 38. d5 {[%emt 0:00:23]} Qxd5 {[%emt 0:01:17]} 39. Rxd5 {[%emt 0:00:28]} Rxa7 {[%emt 0:00:05]} 40. Rb5 {[%emt 0:00:02]} Rc7 {[%emt 0:01:45]} 41. Nd2 {[%emt 0:30:53]} Rc2 {[%emt 0:36:47]} 42. Ne4 {[%emt 0:00:00]} Rb2 {[%emt 0:00:00]} 43. Rb8 {[%emt 0:00:00]} Rc2 {[%emt 0:00:00]} 44. Kf3 {[%emt 0:00:00]} Rc7 {[%emt 0:00:00]} 45. Ke3 {[%emt 0:00:00]} Rd7 {[%emt 0:00:00]} 46. g5 {[%emt 0:00:00]} hxg5 {[%emt 0:00:00]} 47. h6 {[%emt 0:00:00]} Rd5 {[%emt 0:00:00]} 48. Rxf8+ {[%emt 0:00:00]} Kh7 {[%emt 0:00:00]} 49. Rxf7 {[%emt 0:00:48]} Kxh6 {[%emt 0:00:00]} 50. Rb7 {[%emt 0:00:18]} Rxe5 {[%emt 0:00:00]} 51. Rxb4 {[%emt 0:00:03]} Kg6 {[%emt 0:00:00]} 52. Rc4 {[%emt 0:01:06]} Ra5 {[%emt 0:00:00]} 53. Rc5 {[%emt 0:00:49]} Ra3+ {[%emt 0:00:00]} 54. Ke2 {[%emt 0:00:05]} Ra6 {[%emt 0:00:00]} 55. Rxg5+ {[%emt 0:00:28]} Kf7 {[%emt 0:00:00]} 56. f4 {[%emt 0:00:52]} Rb6 {[%emt 0:00:00]} 57. Rc5 {[%emt 0:00:31]} Rb3 {[%emt 0:00:13]} 58. Rc3 {[%emt 0:00:39]} Rxc3 {[%emt 0:01:48]} 59. Nxc3 {[%emt 0:00:04]} e5 {[%emt 0:00:34]} 60. fxe5 {[%emt 0:00:48]} Ke6 {[%emt 0:00:05]} 61. Kf3 {[%emt 0:00:14]} Kxe5 {[%emt 0:00:08]} 62. Ne4 {[%emt 0:00:15]} g5 {[%emt 0:00:06]} 63. Nxg5 {[%emt 0:00:00]} 1/2-1/2

[Event "1st FIDE Olympiad DIS 2023"]
[Site "Belgrade"]
[Date "2023.01.30"]
[Round "1.17"]
[White "Zambo, Zoltan Istvan"]
[Black "Sahin, Handenur"]
[Result "1-0"]
[ECO "D23"]
[WhiteElo "2301"]
[BlackElo "1915"]
[Annotator "TA"]
[PlyCount "134"]
[EventDate "2023.01.30"]
[EventType "team-tourn"]
[EventCountry "SRB"]
[SourceTitle "playchess.com"]
[Source "ChessBase"]
[SourceQuality "1"]
[WhiteTeam "Hungary"]
[BlackTeam "Turkey"]
[WhiteTeamCountry "HUN"]
[BlackTeamCountry "TUR"]
[TimeControl "40/5400+30:1800+30"]

{[%evp 9,134,-39,-34,-33,-26,-61,-55,-40,-42,-47,-48,-41,-41,-63,-66,-58,-58,-95,-95,-95,-93,-91,-92,-83,-56,-104,-104,-104,-104,-118,-118,-133,-147,-147,-50,-61,-58,-63,0,0,0,0,0,0,15,15,15,0,23,23,39,39,39,39,50,30,27,29,29,46,154,143,151,123,714,700,641,743,570,-8,-8,-8,0,0,507,499,469,429,516,383,408,892,882,735,510,429,957,864,1193,1208,1590,1554,928,592,29962,29965,29978,29979,29979,29980,29975,29962,29972,29973,29967,29973,29974,29975,29974,29976,29979,29977,29977,29978,29979,29980,29980,29979,29979,29980,29981,29982,29982,29983,29983,29982,29984]} 1. d4 {[%emt 0:00:10]} d5 {[%emt 0:00:47]} 2. Nf3 {[%emt 0:00:33]} Nf6 {[%emt 0:00:47]} 3. c4 {[%emt 0:00:59]} dxc4 {[%emt 0:00:57]} 4. Qa4+ {[%emt 0:01:21]} Nc6 {[%emt 0:12:15]} 5. Ne5 {[%emt 0:08:46]} Qxd4 {[%emt 0:08:24]} 6. Nxc6 {[%emt 0:00:32] D23: Queen's Gambit Accepted: 3 Nf3 Nf6 sidelines.} ({Much weaker is} 6. Nxc4 e5 7. e3 Qd5 $17) 6... Qd7 {[%emt 0:01:05][%mdl 64] [#] Pin} 7. e4 $146 {[%emt 0:08:25]} ({Predecessor:} 7. Qxc4 Qxc6 8. Qxc6+ bxc6 9. g3 e5 10. Bg2 Nd5 11. O-O Bd6 12. Nc3 Be6 13. Rd1 {0-1 Hillmann,M (2101)-Matthey,H (2174) Sachsen-Anhalt-ch 23rd 2013 (3)}) 7... Qxc6 {[%emt 0:06:29]} (7... Nxe4 {with more complications.} 8. Bxc4 e6 9. Bxe6 Qxe6 10. Ne5+ Bd7) 8. Qxc6+ {[%emt 0:00:55] Black is slightly better.} bxc6 {[%emt 0:00:03]} 9. f3 $1 {[%emt 0:00:15]} e5 {[%emt 0:07:53]} 10. Bxc4 {[%emt 0:00:44]} Bc5 {[%emt 0:04:41] Inhibits Be3.} 11. Nc3 {[%emt 0:05:38]} Nd7 {[%emt 0:07:17]} 12. Bg5 {[%emt 0:11:00]} Nb6 {[%emt 0:03:56]} 13. Bb3 {[%emt 0:00:56]} a5 {[%emt 0:09:04]} 14. Na4 {[%emt 0:05:37]} Bd4 {[%emt 0:04:04]} 15. Rc1 {[%emt 0:02:47]} f6 {[%emt 0:05:13]} 16. Bd2 {[%emt 0:01:34]} Bd7 {[%emt 0:01:00]} (16... Kd7 {is more complex.} 17. Bc3 c5 18. Kd2 Ra7) 17. Bc3 {[%emt 0:05:02]} (17. Ke2 $15 {should be considered.}) 17... c5 $17 {[%emt 0:07:25]} 18. Bxd4 {[%emt 0:00:48]} cxd4 {[%emt 0:00:39]} ({Reject} 18... Nxa4 $6 19. Bxc5 Nxb2 20. Rc2 Nd3+ 21. Kd2 Nxc5 22. Rxc5 $11) 19. Nxb6 {[%emt 0:08:41]} cxb6 {[%emt 0:00:11]} 20. Rc7 {[%emt 0:00:43]} Rc8 {[%emt 0:04:04]} 21. Rb7 {[%emt 0:02:21][%cal Oe1d2]} b5 {[%emt 0:01:12]} (21... Rc1+ $17 22. Bd1 Ke7) 22. Kd2 $15 {[%emt 0:01:59]} Ke7 {[%emt 0:00:47]} 23. Bd5 {[%emt 0:01:03]} Rb8 {[%emt 0:00:49]} (23... a4 $15) 24. Ra7 $11 {[%emt 0:00:15]} Rhc8 {[%emt 0:02:35]} 25. Rxa5 {[%emt 0:01:32]} Rc7 {[%emt 0:00:50]} 26. Rc1 {[%emt 0:01:07]} Rbc8 {[%emt 0:03:07]} 27. Rxc7 {[%emt 0:00:13]} Rxc7 {[%emt 0:00:03][%mdl 4096] Endgame KRB-KRB} 28. a3 {[%emt 0:03:07]} Kd6 {[%emt 0:01:47]} 29. Ra6+ {[%emt 0:07:09]} Bc6 {[%emt 0:00:37]} 30. h4 {[%emt 0:06:32][%cal Of3f4]} h6 {[%emt 0:01:29]} 31. h5 {[%emt 0:02:30][%cal Of3f4]} Kd7 $1 {[%emt 0:01:25]} 32. Rb6 {[%emt 0:02:07] And now Bxc6+ would win.} Bxd5 {[%emt 0:00:31]} 33. exd5 {[%emt 0:00:07] KR-KR} Rc5 {[%emt 0:00:40]} 34. Rb7+ {[%emt 0:02:11]} Rc7 {[%emt 0:01:22]} (34... Kd6 $14) 35. Rxb5 $16 {[%emt 0:00:09]} Kd6 {[%emt 0:00:02]} 36. g4 {[%emt 0:00:46]} Rf7 $2 {[%emt 0:00:39][%mdl 8192]} (36... Ra7 $16) 37. a4 $1 $18 {[%emt 0:05:00]} f5 {[%emt 0:00:41]} 38. gxf5 $1 {[%emt 0:00:59]} Rxf5 {[%emt 0:00:02] [#]} 39. Ke2 $2 {[%emt 0:00:18]} (39. a5 $1 $18 Rxf3 40. a6) 39... Rxh5 $11 {[%emt 0:01:17]} 40. a5 {[%emt 0:04:36][%cal Ba4a5,Ba5a6,Ba6a7][%mdl 32] Hoping for a6.} Rh2+ {[%emt 0:00:44]} 41. Kd3 {[%emt 0:30:35] a6 is the strong threat.} Rf2 $2 {[%emt 0:33:35][%mdl 8192] [#]} (41... Rh1 $1 $11 {and Black is okay.}) 42. a6 $1 $18 {[%emt 0:00:00]} Rxf3+ {[%emt 0:13:16]} 43. Kc4 {[%emt 0:00:00] White threatens a7 and mate.} Rf8 {[%emt 0:00:00]} 44. Rb6+ {[%emt 0:00:00]} Kd7 {[%emt 0:00:00]} 45. a7 {[%emt 0:00:00]} Rc8+ {[%emt 0:00:00] [#]} 46. Rc6 $1 {[%emt 0:00:00][%mdl 512] Intending Rxc8 and mate.} Ra8 {[%emt 0:00:00]} 47. Rg6 {[%emt 0:00:50]} Rc8+ {[%emt 0:00:00]} (47... Kc7 $142 48. Rxg7+ Kb6) 48. Kd3 {[%emt 0:01:02]} Ra8 {[%emt 0:00:00]} 49. Ke4 {[%emt 0:00:30]} Kc7 {[%emt 0:00:00]} 50. Rxg7+ {[%emt 0:00:20]} ({Not} 50. Kxe5 d3 $18) 50... Kd6 {[%emt 0:00:00]} 51. b4 {[%emt 0:01:10][%cal Bb2b4,Bb4b5][%mdl 32] Threatening mate with b5.} Re8 {[%emt 0:00:00]} 52. Rh7 {[%emt 0:00:50] White mates.} Ra8 {[%emt 0:00:00]} 53. Rxh6+ {[%emt 0:00:14]} Kc7 {[%emt 0:00:00]} 54. b5 {[%emt 0:00:44]} Kb7 {[%emt 0:00:00]} 55. b6 {[%emt 0:00:20]} Rd8 {[%emt 0:00:00]} 56. Kxe5 {[%emt 0:01:24]} d3 {[%emt 0:00:00]} 57. Rh3 {[%emt 0:00:15]} Kxb6 {[%emt 0:00:00]} 58. Rxd3 {[%emt 0:00:06]} Kxa7 {[%emt 0:00:00]} 59. Rb3 {[%emt 0:00:35]} Rh8 {[%emt 0:00:00]} 60. Kd6 {[%emt 0:00:27]} Rh6+ {[%emt 0:00:00]} 61. Kc7 {[%emt 0:00:14]} Rh7+ {[%emt 0:00:00]} 62. Kc6 {[%emt 0:00:15]} Rh2 {[%emt 0:01:14]} 63. d6 {[%emt 0:00:13][%cal Bd5d6,Bd6d7][%mdl 32]} Rc2+ {[%emt 0:00:00]} 64. Kd7 {[%emt 0:00:07]} Rh2 {[%emt 0:00:00]} 65. Kd8 {[%emt 0:00:24]} Rd2 {[%emt 0:01:06]} 66. d7 {[%emt 0:00:21]} Ka6 {[%emt 0:00:00]} 67. Re3 {[%emt 0:00:50]} Ka5 {[%emt 0:00:00] Quite a comeback for White.   Weighted Error Value: White=0.26 (precise) /Black=0.35} 1-0